bitfinex-derivatives/quotes_BTCF0:USTF0_20240905
["timestamp","ask_amount","ask_price","bid_price","bid_amount"]
[1725574647503,0.3668,56085.0,56084.0,0.36944151]
[1725574647893,0.006,56085.0,56084.0,0.36944151]
[1725574648099,0.006,56085.0,56084.0,0.80135069]
[1725574648605,0.004,56085.0,56084.0,0.73024151]
[1725574648796,0.005,56085.0,56084.0,0.81941551]
[1725574648996,0.002,56088.0,56087.0,0.089169]
[1725574649306,0.002,56088.0,56087.0,0.16023571]
[1725574649600,0.002,56088.0,56087.0,0.089169]
[1725574649998,0.089158,56094.0,56092.0,0.089161]
[1725574650198,0.089158,56094.0,56092.0,0.1424652]
[1725574651308,0.089158,56094.0,56092.0,0.089161]
[1725574651606,0.00026751,56095.0,56094.0,0.089158]
[1725574651797,0.00026751,56095.0,56092.0,0.001]
[1725574651798,0.089159,56094.0,56092.0,0.001]
[1725574651999,0.002,56093.0,56092.0,0.001]
[1725574652398,0.002,56093.0,56092.0,0.090161]
[1725574652698,0.002,56093.0,56092.0,0.091161]
[1725574653499,0.002,56093.0,56092.0,0.16223327]
[1725574653803,0.002,56093.0,56092.0,0.091161]
[1725574654207,0.002,56093.0,56092.0,0.090161]
[1725574654409,0.0726411,56093.0,56092.0,0.090161]
[1725574654612,0.002,56093.0,56092.0,0.090161]
[1725574655006,0.3628,56093.0,56092.0,0.090161]
[1725574655199,0.3648,56093.0,56092.0,0.091161]
[1725574655901,0.453959,56093.0,56092.0,0.002]
[1725574656400,1.767117,56093.0,56092.0,0.002]
[1725574656797,1.87333894,56093.0,56092.0,0.002]
[1725574657009,1.87333894,56093.0,56084.0,0.00446751]
[1725574657010,0.089172,56085.0,56084.0,0.00446751]
[1725574657307,0.541144,56085.0,56084.0,0.00026751]
[1725574657905,1.676064,56085.0,56084.0,0.00026751]
[1725574660008,1.676064,56085.0,56084.0,0.00126751]
[1725574660906,1.956064,56085.0,56084.0,0.00126751]
[1725574662117,0.17837,56077.0,56076.0,0.0042]
[1725574662416,0.089191,56073.0,56072.0,0.00096]
[1725574662617,0.089193,56072.0,56071.0,0.07119991]
[1725574662807,0.089196,56070.0,56069.0,0.07119991]
[1725574663111,0.178396,56069.0,56068.0,0.07119991]
[1725574663315,0.091198,56069.0,56064.0,0.08947251]
[1725574663516,0.089202,56066.0,56065.0,0.07120693]
[1725574664014,0.075202,56066.0,56065.0,0.07120693]
[1725574664212,0.081204,56065.0,56064.0,0.16067944]
[1725574664512,0.081204,56065.0,56064.0,0.08947251]
[1725574664513,0.444004,56065.0,56064.0,0.08947251]
[1725574665209,0.430004,56065.0,56064.0,0.08947251]
[1725574665411,0.069204,56065.0,56064.0,0.08947251]
[1725574665615,0.430004,56065.0,56064.0,0.08947251]
[1725574665818,0.419004,56065.0,56064.0,0.1428077]
[1725574666020,0.419004,56065.0,56064.0,0.1568077]
[1725574666401,0.419004,56065.0,56064.0,0.11447251]
[1725574666602,0.420004,56065.0,56064.0,0.11447251]
[1725574667115,0.421004,56065.0,56064.0,0.10347251]
[1725574668010,0.421004,56065.0,56064.0,0.01426751]
[1725574668011,1.645288,56065.0,56064.0,0.01426751]
[1725574668207,1.649288,56065.0,56064.0,0.00026751]
[1725574669513,1.114208,56065.0,56064.0,0.00026751]
[1725574669703,1.649288,56065.0,56064.0,0.00026751]
[1725574669906,1.738492,56065.0,56064.0,0.00026751]
[1725574671516,1.138492,56065.0,56064.0,0.00026751]
[1725574672718,0.514208,56065.0,56064.0,0.00026751]
[1725574672907,0.3688,56065.0,56064.0,0.08947351]
[1725574673511,0.458004,56065.0,56064.0,0.08947351]
[1725574674212,0.3688,56065.0,56064.0,0.08947351]
[1725574680517,0.3688,56065.0,56064.0,0.09515012]
[1725574681339,0.008,56065.0,56064.0,0.09515012]
[1725574681824,0.008,56065.0,56064.0,0.14848531]
[1725574682034,0.008,56065.0,56064.0,0.00026751]
[1725574682221,0.458004,56065.0,56064.0,0.00026751]
[1725574684031,0.547208,56065.0,56064.0,0.00026751]
[1725574685131,0.827208,56065.0,56064.0,0.00026751]
[1725574685318,0.547208,56065.0,56064.0,0.00026751]
[1725574685520,0.827208,56065.0,56064.0,0.00026751]
[1725574689432,0.89808842,56065.0,56064.0,0.00026751]
[1725574690435,0.827208,56065.0,56064.0,0.00026751]
[1725574691229,0.547208,56065.0,56064.0,0.00026751]
[1725574691434,0.827208,56065.0,56064.0,0.00026751]
[1725574692846,0.916412,56065.0,56064.0,0.00026751]
[1725574694841,0.916412,56065.0,56063.0,0.05133475]
[1725574694842,1.873084,56065.0,56063.0,0.05133475]
[1725574695044,1.873084,56065.0,56059.0,0.05133475]
[1725574695045,0.23080053,56064.0,56059.0,0.05133475]
[1725574695344,0.23080053,56064.0,56054.0,0.02]
[1725574695345,0.17844,56055.0,56054.0,0.02]
[1725574695546,0.18044,56055.0,56054.0,0.02]
[1725574695747,0.18044,56055.0,56054.0,0.0256904]
[1725574696848,0.18144,56055.0,56054.0,0.0286904]
[1725574697447,0.18244,56055.0,56054.0,0.0306904]
[1725574697648,0.54324,56055.0,56054.0,0.0306904]
[1725574700348,1.76766,56055.0,56054.0,0.025]
[1725574700549,0.267684,56050.0,56049.0,0.07153466]
[1725574700747,0.267684,56050.0,56049.0,0.00026751]
[1725574700748,0.717712,56050.0,56049.0,0.00026751]
[1725574700950,0.178482,56042.0,56041.0,0.0042]
[1725574701151,0.178482,56042.0,56037.0,0.07126715]
[1725574701152,0.089244,56040.0,56037.0,0.07126715]
[1725574701358,0.089244,56040.0,56036.0,0.07126715]
[1725574701359,0.178498,56037.0,56036.0,0.07126715]
[1725574701554,0.089257,56032.0,56031.0,0.07126715]
[1725574701757,0.734057,56032.0,56031.0,0.07126715]
[1725574702062,0.734057,56032.0,56030.0,0.07126715]
[1725574702063,0.089258,56031.0,56030.0,0.07126715]
[1725574702249,0.08926,56030.0,56029.0,0.07126715]
[1725574702451,0.09326,56030.0,56029.0,0.07126715]
[1725574702656,0.089264,56027.0,56026.0,0.0771664]
[1725574702851,0.372264,56027.0,56026.0,0.0771664]
[1725574703559,0.372264,56027.0,56026.0,0.00589925]
[1725574703760,0.371264,56027.0,56026.0,0.00589925]
[1725574705153,0.372264,56027.0,56026.0,0.00589925]
[1725574705861,0.373264,56027.0,56026.0,0.00589925]
[1725574707565,0.32860844,56027.0,56026.0,0.00589925]
[1725574708662,0.41787244,56027.0,56026.0,0.00026751]
[1725574709767,0.41687244,56027.0,56026.0,0.00026751]
[1725574710468,0.41587244,56027.0,56026.0,0.00026751]
[1725574711462,0.77667244,56027.0,56026.0,0.00026751]
[1725574711968,2.09068044,56027.0,56026.0,5.1e-07]
[1725574714657,2.09624641,56027.0,56026.0,5.1e-07]
[1725574715869,2.09824641,56027.0,56026.0,5.1e-07]
[1725574716366,1.73744641,56027.0,56026.0,5.1e-07]
[1725574716668,2.45904641,56027.0,56026.0,5.1e-07]
[1725574720671,1.73744641,56027.0,56026.0,5.1e-07]
[1725574720871,2.45904641,56027.0,56026.0,5.1e-07]
[1725574722067,0.267822,56021.0,56020.0,0.0042]
[1725574722268,0.17857,56014.0,56013.0,0.00568809]
[1725574722468,0.089288,56012.0,56011.0,0.08929]
[1725574722667,0.178576,56012.0,56011.0,0.08929]
[1725574724268,0.178576,56012.0,56011.0,0.09486679]
[1725574724975,0.178576,56012.0,56011.0,0.00557679]
[1725574725165,0.089292,56010.0,56008.0,0.089294]
[1725574725468,0.454092,56010.0,56008.0,0.089294]
[1725574725672,0.454092,56010.0,56002.0,0.0042]
[1725574725673,0.267909,56003.0,56002.0,0.0042]
[1725574725873,0.267918,56001.0,56000.0,0.0474]
[1725574726067,0.547918,56001.0,56000.0,0.0474]
[1725574726468,0.551918,56001.0,56000.0,0.05316083]
[1725574726668,0.547918,56001.0,56000.0,0.05316083]
[1725574728078,0.548918,56001.0,56000.0,0.05316083]
[1725574729080,0.549918,56001.0,56000.0,0.05316083]
[1725574729581,0.548918,56001.0,56000.0,0.0474]
[1725574729887,0.178618,55999.0,55998.0,0.07126715]
[1725574730074,0.178618,55999.0,55993.0,0.00563404]
[1725574730075,0.089312,55997.0,55993.0,0.00563404]
[1725574730268,0.284,55999.0,55987.0,0.0942]
[1725574730269,0.089322,55991.0,55990.0,0.07126715]
[1725574730480,0.284,55991.0,55989.0,0.07126715]
[1725574730674,0.17865,55989.0,55988.0,0.07684152]
[1725574730976,0.17865,55989.0,55987.0,0.046]
[1725574730977,0.178654,55988.0,55987.0,0.046]
[1725574731179,0.178656,55987.0,55986.0,0.076819]
[1725574731376,0.53984,55987.0,55980.0,0.07546715]
[1725574731682,0.178692,55976.0,55975.0,1.5e-07]
[1725574731871,0.178692,55976.0,55964.0,0.10677815]
[1725574731872,0.089362,55966.0,55965.0,0.08898179]
[1725574732072,0.089362,55966.0,55958.0,0.08898179]
[1725574732073,0.58221406,55966.0,55958.0,0.08898179]
[1725574732277,0.734173,55959.0,55958.0,0.08898179]
[1725574732481,0.6408,55959.0,55957.0,0.0041]
[1725574732676,0.093375,55958.0,55957.0,0.0041]
[1725574735277,0.630495,55958.0,55957.0,0.0041]
[1725574735485,1.592295,55958.0,55957.0,0.0041]
[1725574736178,1.50292,55958.0,55938.0,0.3649]
[1725574736381,1.50292,55958.0,55938.0,0.3608]
[1725574736382,0.093405,55939.0,55938.0,0.3608]
[1725574736581,0.2571297,55940.0,55938.0,0.3608]
[1725574736781,0.089405,55939.0,55938.0,0.3648]
[1725574737679,0.089405,55939.0,55938.0,0.37046151]
[1725574737985,0.089405,55939.0,55938.0,0.3648]
[1725574738172,1.85792,55939.0,55937.0,1.00092]
[1725574738373,1.85792,55939.0,55918.0,0.3608]
[1725574738374,0.719134,55938.0,55920.0,0.135735]
[1725574738577,0.719134,55938.0,55918.0,0.3608]
[1725574738578,0.089436,55920.0,55915.0,0.089443]
[1725574738782,0.6448,55921.0,55914.0,0.3608]
[1725574738783,0.284,55916.0,55914.0,0.3608]
[1725574739085,0.28,55916.0,55915.0,0.089443]
[1725574739277,0.004,55921.0,55920.0,0.089435]
[1725574739673,0.004,55921.0,55920.0,1.225915]
[1725574739882,0.00026825,55923.0,55920.0,1.225915]
[1725574739883,0.00026825,55923.0,55922.0,0.089432]
[1725574740385,0.0058,55938.0,55922.0,0.53644]
[1725574740386,0.01302786,55935.0,55922.0,0.53644]
[1725574740588,0.28,55925.0,55921.0,0.3608]
[1725574740882,0.3608,55935.0,55921.0,0.3608]
[1725574740883,0.004,55922.0,55921.0,0.3608]
[1725574741089,0.28,55929.0,55928.0,0.089423]
[1725574741673,0.28,55933.0,55928.0,0.089423]
[1725574741984,0.28,55933.0,55926.0,0.3608]
[1725574742183,0.004,55927.0,55926.0,0.450226]
[1725574742481,0.28,55933.0,55926.0,0.3608]
[1725574742987,0.28,55933.0,55932.0,0.089416]
[1725574743292,0.00026825,55934.0,55932.0,0.089416]
[1725574743293,0.00026825,55934.0,55933.0,0.089415]
[1725574743479,0.0041,55947.0,55946.0,0.089394]
[1725574743791,0.28,55948.0,55947.0,0.089392]
[1725574744581,0.3608,55949.0,55948.0,0.089391]
[1725574744883,0.3608,55949.0,55942.0,0.05016825]
[1725574745086,0.28,55944.0,55942.0,0.05016825]
[1725574745278,0.002,55943.0,55942.0,0.05016825]
[1725574745479,0.002,55943.0,55942.0,0.13956825]
[1725574745785,0.006,55948.0,55947.0,0.089392]
[1725574745982,0.3628,55949.0,55948.0,0.089391]
[1725574746290,0.3648,55949.0,55948.0,0.689391]
[1725574746486,0.3648,55949.0,55948.0,1.225591]
[1725574746686,0.004,55949.0,55948.0,1.586391]
[1725574746888,0.004,55949.0,55948.0,0.986391]
[1725574747093,0.004,55949.0,55948.0,1.586391]
[1725574747386,0.004,55949.0,55948.0,0.986391]
[1725574747689,0.00026825,55953.0,55948.0,1.355782]
[1725574747886,0.00026825,55953.0,55952.0,0.369384]
[1725574748184,0.00026825,55953.0,55952.0,0.905544]
[1725574748388,0.00026825,55953.0,55952.0,1.505544]
[1725574749497,0.00226825,55953.0,55952.0,1.512544]
[1725574749882,0.00226825,55953.0,55952.0,1.601928]
[1725574750085,0.3267,55963.0,55962.0,0.089368]
[1725574750288,0.089359,55968.0,55962.0,0.3608]
[1725574750489,0.089359,55968.0,55965.0,0.089362]
[1725574750693,0.089347,55976.0,55967.0,0.3608]
[1725574750990,0.00026801,55976.0,55967.0,0.3608]
[1725574751192,0.00026801,55976.0,55965.0,0.28026801]
[1725574751193,0.369359,55968.0,55965.0,0.00026801]
[1725574751502,0.369359,55968.0,55945.0,0.3608]
[1725574751503,0.178734,55963.0,55962.0,0.001]
[1725574751797,0.910901,55963.0,55962.0,0.001]
[1725574751980,2.116981,55963.0,55962.0,0.001]
[1725574752180,2.116981,55963.0,55948.0,0.089391]
[1725574752181,0.089387,55951.0,55948.0,0.089391]
[1725574752382,0.002,55949.0,55948.0,0.450191]
[1725574752587,0.089387,55951.0,55948.0,0.450191]
[1725574752588,0.04467245,55951.0,55948.0,0.450191]
[1725574753094,0.089382,55954.0,55951.0,0.089385]
[1725574754182,0.089383,55953.0,55951.0,0.089385]
[1725574754983,0.003,55954.0,55953.0,0.089383]
[1725574755684,0.00026801,55955.0,55954.0,0.089381]
[1725574759091,0.00446398,55955.0,55954.0,1.226541]
[1725574759292,0.00946398,55955.0,55954.0,1.226541]
[1725574759494,0.00946398,55955.0,55954.0,1.31552279]
[1725574759695,0.00446398,55955.0,55954.0,1.226541]
[1725574759998,0.00446398,55955.0,55954.0,1.227541]
[1725574761299,0.3608,55956.0,55955.0,0.089379]
[1725574761784,0.00026801,55960.0,55956.0,0.089377]
[1725574762305,0.00026801,55960.0,55954.0,0.001]
[1725574762306,0.089379,55955.0,55954.0,0.090381]
[1725574762490,0.454179,55955.0,55954.0,0.090381]
[1725574762689,0.454179,55955.0,55954.0,0.089381]
[1725574763394,0.3648,55955.0,55951.0,0.00562567]
[1725574763597,0.3648,55955.0,55948.0,0.089389]
[1725574763598,0.004,55952.0,55948.0,0.089389]
[1725574763910,0.093389,55949.0,55948.0,0.089389]
[1725574764103,0.089389,55949.0,55948.0,0.089389]
[1725574764301,0.089394,55946.0,55944.0,0.00026801]
[1725574764494,0.089394,55946.0,55945.0,0.089395]
[1725574765900,0.089395,55945.0,55944.0,0.00026801]
[1725574766100,0.089395,55945.0,55944.0,0.08966501]
[1725574766101,0.093395,55945.0,55944.0,0.08966501]
[1725574766298,0.093395,55945.0,55944.0,0.00026801]
[1725574766500,0.54359,55945.0,55944.0,0.00026801]
[1725574766906,0.59079,55945.0,55944.0,0.00026801]
[1725574767403,0.59279,55945.0,55944.0,0.00026801]
[1725574769004,0.59379,55945.0,55944.0,0.00026801]
[1725574769702,0.3748,55945.0,55944.0,0.00126801]
[1725574769906,0.3738,55945.0,55944.0,0.09066501]
[1725574770107,0.3738,55945.0,55944.0,1.36412553]
[1725574770108,0.3828,55945.0,55944.0,1.36412553]
[1725574770604,0.3848,55945.0,55944.0,0.76412553]
[1725574770810,0.3848,55945.0,55944.0,0.22788553]
[1725574770993,0.3848,55945.0,55944.0,0.23356847]
[1725574771800,0.474195,55945.0,55944.0,0.14417147]
[1725574771995,0.56359,55945.0,55944.0,0.00226801]
[1725574772207,0.56359,55945.0,55944.0,0.00126801]
[1725574772208,1.461225,55945.0,55944.0,0.00126801]
[1725574772506,1.461225,55945.0,55935.0,0.08907121]
[1725574772507,1.882435,55945.0,55935.0,0.08907121]
[1725574772705,1.882435,55945.0,55929.0,0.08907121]
[1725574772706,0.089419,55930.0,55929.0,0.08907121]
[1725574772897,0.089419,55930.0,55929.0,0.13626237]
[1725574772898,0.004,55930.0,55929.0,0.13626237]
[1725574773100,0.089419,55930.0,55929.0,0.22568337]
[1725574774107,0.089419,55930.0,55929.0,0.3147267]
[1725574774508,0.089419,55930.0,55929.0,0.31468883]
[1725574774703,0.089419,55930.0,55929.0,0.089421]
[1725574774910,0.3608,55931.0,55930.0,0.089419]
[1725574775105,0.00026801,55935.0,55933.0,0.089413]
[1725574776915,0.450213,55934.0,55933.0,0.089413]
[1725574778322,0.450213,55934.0,55928.0,0.012]
[1725574778323,0.089417,55932.0,55931.0,0.089417]
[1725574778511,0.091417,55932.0,55931.0,0.089417]
[1725574779721,0.094417,55932.0,55931.0,0.089417]
[1725574780114,0.005,55932.0,55931.0,0.089417]
[1725574781822,0.094416,55932.0,55931.0,0.089417]
[1725574782224,0.097416,55932.0,55931.0,0.089417]
[1725574783525,0.008,55932.0,55931.0,0.089417]
[1725574783720,0.097416,55932.0,55931.0,0.089417]
[1725574784020,0.097416,55932.0,55931.0,0.450217]
[1725574784225,0.097416,55932.0,55931.0,0.3608]
[1725574784424,0.186832,55932.0,55931.0,0.3608]
[1725574785528,0.25667377,55932.0,55931.0,0.3608]
[1725574785927,0.089421,55929.0,55928.0,0.101422]
[1725574786131,0.16215136,55929.0,55928.0,0.101422]
[1725574786332,0.180842,55929.0,55928.0,0.012]
[1725574786533,0.270263,55929.0,55928.0,0.012]
[1725574787027,0.268281,55925.0,55924.0,0.00026801]
[1725574787333,1.518521,55925.0,55924.0,0.00026801]
[1725574788727,1.60687247,55925.0,55924.0,0.00026801]
[1725574788936,1.518521,55925.0,55924.0,0.00026801]
[1725574789131,1.60687411,55925.0,55924.0,0.00526801]
[1725574789335,2.20687411,55925.0,55924.0,0.00526801]
[1725574789628,2.118521,55925.0,55924.0,0.00926801]
[1725574789837,1.518521,55925.0,55924.0,0.00926801]
[1725574790022,1.429094,55925.0,55924.0,0.00926801]
[1725574790222,0.892654,55925.0,55924.0,0.00926801]
[1725574790626,2.118521,55925.0,55924.0,0.00926801]
[1725574790833,2.029094,55925.0,55924.0,0.00926801]
[1725574791325,2.118521,55925.0,55924.0,0.00926801]
[1725574792734,2.118521,55925.0,55924.0,0.00526801]
[1725574792936,2.132521,55925.0,55924.0,0.00626801]
[1725574793335,2.132521,55925.0,55911.0,1.0042]
[1725574793336,0.178896,55912.0,55911.0,1.0042]
[1725574793538,0.993944,55912.0,55911.0,1.0]
[1725574793843,2.130504,55912.0,55911.0,0.895505]
[1725574794049,2.410504,55912.0,55911.0,0.895505]
[1725574795448,2.132504,55912.0,55911.0,0.895505]
[1725574795742,2.412504,55912.0,55911.0,0.803728]
[1725574796257,1.188496,55912.0,55911.0,0.803728]
[1725574796548,1.190496,55912.0,55911.0,0.803728]
[1725574796851,1.238696,55912.0,55911.0,0.803728]
[1725574797148,1.241696,55912.0,55911.0,0.803728]
[1725574797341,1.778256,55912.0,55911.0,0.803728]
[1725574797537,1.241696,55912.0,55911.0,0.803728]
[1725574798749,1.32994825,55912.0,55911.0,0.803728]
[1725574798939,1.32995321,55912.0,55911.0,0.803728]
[1725574799248,1.104048,55912.0,55911.0,0.803728]
[1725574800346,1.104048,55912.0,55911.0,2.399188]
[1725574800347,0.013,55912.0,55911.0,2.399188]
[1725574800653,0.013,55912.0,55911.0,2.544088]
[1725574800953,0.00026828,55917.0,55911.0,2.544088]
[1725574800954,0.00026828,55917.0,55916.0,0.089442]
[1725574801141,0.00026828,55917.0,55916.0,1.225962]
[1725574801342,0.00026828,55917.0,55916.0,1.586762]
[1725574801645,0.00026828,55917.0,55916.0,1.505962]
[1725574802250,0.00026828,55917.0,55916.0,1.866762]
[1725574803253,0.00026828,55917.0,55916.0,1.505962]
[1725574803551,0.00026828,55917.0,55916.0,0.369442]
[1725574803750,0.00026828,55917.0,55916.0,1.595404]
[1725574803952,0.00326828,55917.0,55916.0,1.315404]
[1725574804646,0.00326828,55917.0,55916.0,1.225962]
[1725574805349,0.093623,55928.0,55926.0,0.089425]
[1725574805553,0.3608,55930.0,55916.0,1.225962]
[1725574805554,0.450221,55930.0,55928.0,0.089422]
[1725574805961,0.450221,55930.0,55929.0,0.089421]
[1725574806146,0.3608,55930.0,55929.0,0.089421]
[1725574806956,0.3608,55930.0,55924.0,0.00026828]
[1725574806957,0.089427,55925.0,55924.0,0.00026828]
[1725574807156,1.343881,55925.0,55924.0,0.00026828]
[1725574807351,2.480321,55925.0,55924.0,0.00026828]
[1725574807554,1.343881,55925.0,55924.0,0.00026828]
[1725574807851,0.815027,55925.0,55924.0,0.00026828]
[1725574808057,0.815027,55925.0,55924.0,0.08969728]
[1725574808446,0.815027,55925.0,55924.0,0.00026828]
[1725574809360,0.824027,55925.0,55924.0,0.00126828]
[1725574809655,0.471227,55925.0,55924.0,0.00226828]
[1725574811556,0.471227,55925.0,55924.0,0.14059728]
[1725574811757,0.021,55925.0,55924.0,0.14059728]
[1725574813248,0.0921924,55925.0,55924.0,0.14059728]
[1725574813462,0.021,55925.0,55924.0,0.14059728]
[1725574813660,0.09220437,55925.0,55924.0,0.14059728]
[1725574814467,0.289281,55925.0,55924.0,0.00226828]
[1725574814655,0.289281,55925.0,55924.0,0.00126828]
[1725574814656,0.3158302,55925.0,55924.0,0.00126828]
[1725574814852,0.47273094,55925.0,55924.0,0.00226828]
[1725574815163,1.60917094,55925.0,55924.0,0.00226828]
[1725574815360,1.60017094,55925.0,55924.0,0.00126828]
[1725574815562,1.60917094,55925.0,55924.0,0.00226828]
[1725574815761,1.00917094,55925.0,55924.0,0.00226828]
[1725574816161,1.01417094,55925.0,55924.0,0.00226828]
[1725574816459,0.398581,55925.0,55924.0,0.00226828]
[1725574816667,0.348981,55925.0,55924.0,0.00226828]
[1725574816960,0.45586436,55925.0,55924.0,0.00226828]
[1725574817463,0.348981,55925.0,55924.0,0.00226828]
[1725574821067,0.43804938,55925.0,55924.0,0.00226828]
[1725574821266,1.57449615,55925.0,55924.0,0.00226828]
[1725574821469,1.574848,55925.0,55924.0,2.8e-07]
[1725574821968,0.974848,55925.0,55924.0,2.8e-07]
[1725574822167,1.68174454,55925.0,55924.0,2.8e-07]
[1725574822561,1.574848,55925.0,55924.0,2.8e-07]
[1725574823969,1.854848,55925.0,55924.0,2.8e-07]
[1725574824467,1.854848,55925.0,55911.0,0.811928]
[1725574824468,0.268344,55912.0,55911.0,0.811928]
[1725574824764,1.271944,55912.0,55911.0,0.807728]
[1725574825269,2.408504,55912.0,55911.0,0.486525]
[1725574825458,2.408504,55912.0,55898.0,1e-08]
[1725574825459,0.178938,55899.0,55898.0,1e-08]
[1725574825774,0.994007,55899.0,55898.0,1e-08]
[1725574826073,0.08949,55887.0,55876.0,0.3608]
[1725574826369,0.08949,55887.0,55870.0,0.07116009]
[1725574826370,0.3648,55877.0,55862.0,0.05335967]
[1725574826570,0.6448,55863.0,55855.0,0.089538]
[1725574826760,0.004,55856.0,55855.0,0.09504306]
[1725574827060,0.3608,55858.0,55854.0,0.3608]
[1725574827256,0.004,55855.0,55854.0,0.3608]
[1725574827464,0.28,55857.0,55843.0,0.4086]
[1725574827465,0.089551,55848.0,55843.0,0.4086]
[1725574827660,0.093558,55844.0,55843.0,0.004]
[1725574827860,0.004,55844.0,55843.0,0.004]
[1725574828061,0.004,55844.0,55843.0,0.5412]
[1725574828268,0.004,55844.0,55843.0,0.004]
[1725574828472,0.8912,55844.0,55843.0,0.004]
[1725574828673,0.004,55844.0,55843.0,1.1412]
[1725574828876,0.004,55844.0,55843.0,1.502]
[1725574829074,0.3649,55858.0,55844.0,0.5372]
[1725574829075,0.0041,55858.0,55844.0,0.5372]
[1725574829371,0.0041,55865.0,55863.0,0.089526]
[1725574829563,0.6875,55873.0,55857.0,0.35]
[1725574829564,0.3608,55870.0,55857.0,0.35]
[1725574829873,0.3608,55878.0,55863.0,0.089525]
[1725574830069,0.3608,55873.0,55865.0,0.00026853]
[1725574830269,0.00026853,55876.0,55870.0,0.3608]
[1725574830578,0.00026853,55876.0,55868.0,0.35]
[1725574830778,0.004,55869.0,55865.0,0.36106853]
[1725574830983,0.004,55866.0,55865.0,0.45059153]
[1725574831276,0.004,55869.0,55867.0,0.08952]
[1725574831573,0.004,55869.0,55866.0,0.537]
[1725574831574,0.004,55869.0,55866.0,0.00092]
[1725574831881,0.004,55867.0,55865.0,0.00118853]
[1725574832074,0.004,55866.0,55865.0,0.00026853]
[1725574833669,0.017,55866.0,55865.0,0.00026853]
[1725574834169,0.03,55866.0,55865.0,0.00026853]
[1725574835270,0.027,55866.0,55865.0,0.00026853]
[1725574836267,0.023,55866.0,55865.0,0.00026853]
[1725574837364,0.112522,55866.0,55865.0,0.00026853]
[1725574840082,0.202044,55866.0,55865.0,0.00026853]
[1725574840379,1.339044,55866.0,55865.0,0.00026853]
[1725574840677,1.428566,55866.0,55865.0,5.3e-07]
[1725574841274,1.339044,55866.0,55865.0,5.3e-07]
[1725574841466,0.112522,55866.0,55865.0,5.3e-07]
[1725574841690,0.202044,55866.0,55865.0,5.3e-07]
[1725574841874,1.428566,55866.0,55865.0,5.3e-07]
[1725574842075,0.739044,55866.0,55865.0,5.3e-07]
[1725574842274,0.202044,55866.0,55865.0,5.3e-07]
[1725574844374,1.428566,55866.0,55865.0,5.3e-07]
[1725574846378,0.117522,55866.0,55865.0,5.3e-07]
[1725574846579,0.032,55866.0,55865.0,0.08952353]
[1725574846774,0.121522,55866.0,55865.0,0.08952353]
[1725574847085,0.018,55866.0,55865.0,0.08952353]
[1725574847390,0.032,55866.0,55865.0,0.08952353]
[1725574847595,0.121522,55866.0,55865.0,0.08952353]
[1725574847779,0.032,55866.0,55865.0,0.08952353]
[1725574848885,0.017,55866.0,55865.0,0.08952353]
[1725574849076,0.031,55866.0,55865.0,0.08952353]
[1725574849392,0.031,55866.0,55865.0,1.31604653]
[1725574849587,0.004,55869.0,55868.0,0.179038]
[1725574849778,0.004,55869.0,55868.0,0.539838]
[1725574850188,0.00026853,55876.0,55868.0,0.539838]
[1725574850189,0.00026853,55876.0,55868.0,0.450319]
[1725574850395,0.00026853,55876.0,55875.0,0.089507]
[1725574850904,0.00026853,55876.0,55875.0,0.626427]
[1725574851494,0.00026853,55876.0,55875.0,1.226427]
[1725574852500,0.00026853,55876.0,55875.0,0.089507]
[1725574852699,0.00926853,55876.0,55875.0,0.090507]
[1725574853000,0.02326853,55876.0,55875.0,0.090507]
[1725574853206,0.3608,55886.0,55884.0,0.089492]
[1725574853508,0.3608,55886.0,55885.0,0.089491]
[1725574854006,0.3608,55886.0,55885.0,1.226291]
[1725574854300,0.00026853,55891.0,55889.0,0.089485]
[1725574854894,0.00026853,55891.0,55879.0,0.05335967]
[1725574855093,0.00026853,55891.0,55878.0,0.36184]
[1725574855094,0.002,55881.0,55878.0,0.3608]
[1725574855299,0.002,55881.0,55880.0,0.08976753]
[1725574855495,0.002,55881.0,55880.0,1.22660753]
[1725574855901,0.002,55881.0,55880.0,1.2799672]
[1725574856093,0.002,55881.0,55880.0,0.67990096]
[1725574856304,0.002,55881.0,55880.0,0.68090096]
[1725574856500,0.002,55881.0,55880.0,0.09076753]
[1725574856692,0.002,55881.0,55880.0,1.28090096]
[1725574856898,0.002,55881.0,55880.0,1.22660753]
[1725574857199,0.002,55881.0,55880.0,1.22860753]
[1725574859404,0.002,55881.0,55880.0,0.62860753]
[1725574859606,0.002,55881.0,55880.0,1.22860753]
[1725574861404,0.00026853,55891.0,55880.0,1.13910853]
[1725574861604,0.6875,55903.0,55897.0,0.089472]
[1725574861605,0.0042,55898.0,55897.0,0.089472]
[1725574861804,0.089466,55902.0,55901.0,0.089466]
[1725574862007,0.089471,55898.0,55897.0,0.36172]
[1725574862204,0.3628,55898.0,55881.0,0.05317088]
[1725574862406,0.178996,55881.0,55880.0,0.00292]
[1725574862716,0.089498,55881.0,55880.0,0.002]
[1725574863100,0.089498,55881.0,55880.0,0.001]
[1725574863298,0.450298,55881.0,55880.0,0.002]
[1725574863500,0.450298,55881.0,55880.0,0.001]
[1725574863708,0.3608,55881.0,55880.0,0.001]
[1725574863903,0.3608,55881.0,55880.0,1.227339]
[1725574864103,0.089486,55889.0,55880.0,1.48784]
[1725574864316,0.089486,55889.0,55887.0,0.3608]
[1725574865807,0.089486,55889.0,55887.0,0.450287]
[1725574866002,0.089486,55889.0,55887.0,0.3608]
[1725574866507,0.099486,55889.0,55887.0,0.3628]
[1725574867110,0.089487,55888.0,55887.0,0.3628]
[1725574868717,0.01,55888.0,55887.0,0.3628]
[1725574868917,0.01,55888.0,55887.0,1.589088]
[1725574869213,0.00026853,55895.0,55894.0,0.089477]
[1725574869412,0.00026853,55895.0,55894.0,1.336997]
[1725574869606,0.00026853,55895.0,55894.0,1.936997]